Workbook

Sheet 化学工艺系学硕
A1: 化学工程与环境学院2021级全日制硕士研究生复试成绩汇总暨拟录取名单统计表
A2: 复试小组名称： 化学工艺系（学术型）
A3: 序号 | B3: 考生编号 | C3: 姓名 | D3: 面试专业成绩 | E3: 面试英语成绩 | F3: 复试成绩 | G3: 初试成绩 | H3: 总成绩 | I3: 是否拟录取 | J3: 拟录取专业 | K3: 考生来源(推免/优秀营员/统考) | L3: 备注
A4: 1 | C4: 夏丹 | F4: 87.00 | I4: 是 | J4: 化学工程与技术 | K4: 推免 | L4: 助管
A5: 2 | C5: 钱锦秀 | F5: 85.92 | I5: 是 | J5: 化学工程与技术 | K5: 推免
A6: 3 | C6: 马雯妍 | F6: 86.20 | I6: 是 | J6: 化学工程与技术 | K6: 推免 | L6: 助管
A7: 4 | C7: 吴剑 | F7: 86.20 | I7: 是 | J7: 化学工程与技术 | K7: 推免
A8: 5 | C8: 韩肖宁 | F8: 88.20 | I8: 是 | J8: 化学工程与技术 | K8: 推免
A9: 6 | C9: 邱皓月 | F9: 87.20 | I9: 是 | J9: 化学工程与技术 | K9: 推免 | L9: 助管
A10: 7 | C10: 张建超 | F10: 82.24 | I10: 是 | J10: 化学工程与技术 | K10: 推免
A11: 8 | C11: 喻婉婷 | F11: 83.60 | I11: 是 | J11: 化学工程与技术 | K11: 推免
A12: 9 | C12: 马小娟 | F12: 89.88 | I12: 是 | J12: 化学工程与技术 | K12: 推免
A13: 10 | B13: 114141137023321 | C13: 王鹏军 | D13: 86.33 | E13: 86.67 | F13: 86.47 | G13: 404 | H13: 82.50 | I13: 是 | J13: 化学工程与技术 | K13: 夏令营优秀营员
A14: 11 | B14: 114141161034500 | C14: 韩轲 | D14: 85.00 | E14: 85.33 | F14: 85.13 | G14: 386 | H14: 79.58 | I14: 是 | J14: 化学工程与技术 | K14: 夏令营优秀营员
A15: 12 | B15: 114141165054919 | C15: 杨翰林 | D15: 86.00 | E15: 84.67 | F15: 85.47 | G15: 375 | H15: 78.14 | I15: 是 | J15: 化学工程与技术 | K15: 夏令营优秀营员
A16: 13 | B16: 114141111641386 | C16: 王檀 | D16: 85.00 | E16: 86.00 | F16: 85.40 | G16: 368 | H16: 77.14 | I16: 是 | J16: 化学工程与技术 | K16: 夏令营优秀营员
A17: 14 | B17: 114141111641056 | C17: 赵翔宇 | D17: 88.67 | E17: 88.33 | F17: 88.53 | G17: 360 | H17: 76.96 | I17: 是 | J17: 化学工程与技术 | K17: 夏令营优秀营员
A18: 15 | B18: 114141111641053 | C18: 陈俊阳 | D18: 88.33 | E18: 82.33 | F18: 85.93 | G18: 340 | H18: 73.38 | I18: 是 | J18: 化学工程与技术 | K18: 夏令营优秀营员
A19: 16 | B19: 114141111641115 | C19: 蓝帆 | D19: 90.00 | E19: 90.67 | F19: 90.27 | G19: 328 | H19: 73.00 | I19: 是 | J19: 化学工程与技术 | K19: 夏令营优秀营员
A20: 17 | B20: 114141111641029 | C20: 刘束玉 | D20: 89.00 | E20: 89.00 | F20: 89.00 | G20: 325 | H20: 72.20 | I20: 是 | J20: 化学工程与技术 | K20: 夏令营优秀营员
A21: 18 | B21: 114141111641552 | C21: 宁小奇 | D21: 86.00 | E21: 93.67 | F21: 89.07 | G21: 323 | H21: 71.94 | I21: 是 | J21: 化学工程与技术 | K21: 夏令营优秀营员
A22: 19 | B22: 114141165054923 | C22: 朱家伟 | D22: 87.33 | E22: 83.33 | F22: 85.73 | G22: 328 | H22: 71.64 | I22: 是 | J22: 化学工程与技术 | K22: 夏令营优秀营员
A23: 20 | B23: 114141165054925 | C23: 左都凤 | D23: 89.00 | E23: 87.67 | F23: 88.47 | G23: 317 | H23: 70.92 | I23: 是 | J23: 化学工程与技术 | K23: 夏令营优秀营员
A24: 21 | B24: 114141161034571 | C24: 张宸玮 | D24: 89.33 | E24: 87.67 | F24: 88.67 | G24: 314 | H24: 70.56 | I24: 是 | J24: 化学工程与技术 | K24: 夏令营优秀营员
A25: 22 | B25: 114141151104287 | C25: 徐文杰 | D25: 93.00 | E25: 88.00 | F25: 91.00 | G25: 308 | H25: 70.42 | I25: 是 | J25: 化学工程与技术 | K25: 夏令营优秀营员
A26: 23 | B26: 114141165054918 | C26: 徐琪 | D26: 88.67 | E26: 83.00 | F26: 86.40 | G26: 314 | H26: 69.88 | I26: 是 | J26: 化学工程与技术 | K26: 夏令营优秀营员
A27: 24 | B27: 114141121102577 | C27: 李东璇 | D27: 87.33 | E27: 89.67 | F27: 88.27 | G27: 309 | H27: 69.74 | I27: 是 | J27: 化学工程与技术 | K27: 夏令营优秀营员
A28: 25 | B28: 114141113262280 | C28: 郑龙娇 | D28: 85.33 | E28: 86.00 | F28: 85.60 | G28: 309 | H28: 68.94 | I28: 是 | J28: 化学工程与技术 | K28: 夏令营优秀营员
A29: 26 | B29: 114141142434076 | C29: 祝庆 | D29: 71.67 | E29: 85.57 | F29: 75.84 | G29: 420 | H29: 81.55 | I29: 是 | J29: 化学工程与技术 | K29: 统考
A30: 27 | B30: 114141161334618 | C30: 白天瑜 | D30: 79.67 | E30: 88.57 | F30: 82.34 | G30: 397 | H30: 80.28 | I30: 是 | J30: 化学工程与技术 | K30: 统考
A31: 28 | B31: 114141151104283 | C31: 黎春霖 | D31: 74.89 | E31: 79.14 | F31: 76.17 | G31: 386 | H31: 76.89 | I31: 是 | J31: 化学工程与技术 | K31: 统考
A32: 29 | B32: 114141114092313 | C32: 杜少雄 | D32: 78.89 | E32: 88.43 | F32: 81.75 | G32: 372 | H32: 76.61 | I32: 是 | J32: 化学工程与技术 | K32: 统考
A33: 30 | B33: 114141114092315 | C33: 张肖云 | D33: 78.33 | E33: 74.71 | F33: 77.25 | G33: 381 | H33: 76.51 | I33: 是 | J33: 化学工程与技术 | K33: 统考
A34: 31 | B34: 114141137153661 | C34: 王晓东 | D34: 79.11 | E34: 70.86 | F34: 76.63 | G34: 375 | H34: 75.49 | I34: 是 | J34: 化学工程与技术 | K34: 统考
A35: 32 | B35: 114141137023311 | C35: 翟霖晓 | D35: 76.78 | E35: 80.57 | F35: 77.92 | G35: 371 | H35: 75.31 | I35: 是 | J35: 化学工程与技术 | K35: 统考
A36: 33 | B36: 114141151104290 | C36: 张亚红 | D36: 77.56 | E36: 63.57 | F36: 73.36 | G36: 376 | H36: 74.65 | I36: 是 | J36: 化学工程与技术 | K36: 统考
A37: 34 | B37: 114141137133593 | C37: 杨坤 | D37: 75.67 | E37: 75.57 | F37: 75.64 | G37: 371 | H37: 74.63 | I37: 是 | J37: 化学工程与技术 | K37: 统考
A38: 35 | B38: 114141137073467 | C38: 姬娅茹 | D38: 83.44 | E38: 85.14 | F38: 83.95 | G38: 350 | H38: 74.19 | I38: 是 | J38: 化学工程与技术 | K38: 统考
A39: 36 | B39: 114141141103779 | C39: 芮阳 | D39: 72.22 | E39: 72.57 | F39: 72.33 | G39: 373 | H39: 73.92 | I39: 是 | J39: 化学工程与技术 | K39: 统考
A40: 37 | B40: 114141141403883 | C40: 刘振涛 | D40: 77.56 | E40: 77.57 | F40: 77.56 | G40: 360 | H40: 73.67 | I40: 是 | J40: 化学工程与技术 | K40: 统考
A41: 38 | B41: 114141121102585 | C41: 孙俭 | D41: 80.22 | E41: 76.57 | F41: 79.13 | G41: 356 | H41: 73.58 | I41: 是 | J41: 化学工程与技术 | K41: 统考
A42: 39 | B42: 114141162124688 | C42: 杨捷 | D42: 75.56 | E42: 77.00 | F42: 75.99 | G42: 360 | H42: 73.20 | I42: 是 | J42: 化学工程与技术 | K42: 统考
A43: 40 | B43: 114141113152169 | C43: 候宁冉 | D43: 79.11 | E43: 82.43 | F43: 80.11 | G43: 351 | H43: 73.17 | I43: 是 | J43: 化学工程与技术 | K43: 统考
A44: 41 | B44: 114141111641108 | C44: 廖逸飞 | D44: 86.11 | E44: 81.00 | F44: 84.58 | G44: 341 | H44: 73.11 | I44: 是 | J44: 化学工程与技术 | K44: 统考
A45: 42 | B45: 114141111641619 | C45: 孔繁格 | D45: 83.22 | E45: 81.14 | F45: 82.60 | G45: 345 | H45: 73.08 | I45: 是 | J45: 化学工程与技术 | K45: 统考
A46: 43 | B46: 114141111640981 | C46: 李增 | D46: 83.44 | E46: 76.43 | F46: 81.34 | G46: 347 | H46: 72.98 | I46: 是 | J46: 化学工程与技术 | K46: 统考
A47: 44 | B47: 114141121102570 | C47: 陈奕苇 | D47: 72.22 | E47: 86.71 | F47: 76.57 | G47: 352 | H47: 72.25 | I47: 是 | J47: 化学工程与技术 | K47: 统考
A48: 45 | B48: 114141113172207 | C48: 王昊东 | D48: 83.89 | E48: 86.57 | F48: 84.69 | G48: 333 | H48: 72.03 | I48: 是 | J48: 化学工程与技术 | K48: 统考
A49: 46 | B49: 114141121102594 | C49: 魏萌 | D49: 71.89 | E49: 75.00 | F49: 72.82 | G49: 358 | H49: 71.97 | I49: 是 | J49: 化学工程与技术 | K49: 统考
A50: 47 | B50: 114141137133592 | C50: 刘晓月 | D50: 78.44 | E50: 78.43 | F50: 78.44 | G50: 344 | H50: 71.69 | I50: 是 | J50: 化学工程与技术 | K50: 统考
A51: 48 | B51: 114141137023329 | C51: 张世源 | D51: 72.11 | E51: 82.43 | F51: 75.21 | G51: 350 | H51: 71.56 | I51: 是 | J51: 化学工程与技术 | K51: 统考
A52: 49 | B52: 114141113021904 | C52: 王耀 | D52: 76.67 | E52: 73.29 | F52: 75.65 | G52: 349 | H52: 71.56 | I52: 是 | J52: 化学工程与技术 | K52: 统考
A53: 50 | B53: 114141151104282 | C53: 何海平 | D53: 77.11 | E53: 67.00 | F53: 74.08 | G53: 350 | H53: 71.22 | I53: 是 | J53: 化学工程与技术 | K53: 统考
A54: 51 | B54: 114141113021902 | C54: 李爽 | D54: 78.89 | E54: 81.29 | F54: 79.61 | G54: 336 | H54: 70.92 | I54: 是 | J54: 化学工程与技术 | K54: 统考
A55: 52 | B55: 114141112071801 | C55: 霍鑫鑫 | D55: 88.00 | E55: 82.00 | F55: 86.20 | G55: 320 | H55: 70.66 | I55: 是 | J55: 化学工程与技术 | K55: 统考
A56: 53 | B56: 114141141323863 | C56: 王丹丹 | D56: 80.00 | E56: 82.00 | F56: 80.60 | G56: 332 | H56: 70.66 | I56: 是 | J56: 化学工程与技术 | K56: 统考
A57: 54 | B57: 114141137023333 | C57: 郑陶然 | D57: 72.22 | E57: 73.71 | F57: 72.67 | G57: 339 | H57: 69.26 | I57: 是 | J57: 化学工程与技术 | K57: 统考
A58: 55 | B58: 114141137063433 | C58: 李玉梅 | D58: 80.89 | E58: 83.57 | F58: 81.69 | G58: 317 | H58: 68.89 | I58: 是 | J58: 化学工程与技术 | K58: 统考
A59: 56 | B59: 114141111641623 | C59: 封心怡 | D59: 89.56 | E59: 87.29 | F59: 88.87 | G59: 301 | H59: 68.80 | I59: 是 | J59: 化学工程与技术 | K59: 统考
A60: 57 | B60: 114141137033370 | C60: 孙栋 | D60: 72.89 | E60: 71.29 | F60: 72.41 | G60: 336 | H60: 68.76 | I60: 是 | J60: 化学工程与技术 | K60: 统考
A61: 58 | B61: 114141151144331 | C61: 姚荣鹏 | D61: 73.22 | E61: 64.14 | F61: 70.50 | G61: 339 | H61: 68.61 | I61: 是 | J61: 化学工程与技术 | K61: 统考
A62: 59 | B62: 114141123102847 | C62: 房浩楠 | D62: 76.67 | E62: 72.29 | F62: 75.35 | G62: 327 | H62: 68.39 | I62: 是 | J62: 化学工程与技术 | K62: 统考
A63: 60 | B63: 114141141013719 | C63: 董朋阁 | D63: 83.56 | E63: 71.86 | F63: 80.05 | G63: 316 | H63: 68.25 | I63: 是 | J63: 化学工程与技术 | K63: 统考
A64: 61 | B64: 114141137073475 | C64: 许振 | D64: 80.56 | E64: 76.43 | F64: 79.32 | G64: 317 | H64: 68.18 | I64: 是 | J64: 化学工程与技术 | K64: 统考
A65: 62 | B65: 114141137033371 | C65: 王建丽 | D65: 73.33 | E65: 64.71 | F65: 70.75 | G65: 335 | H65: 68.12 | I65: 是 | J65: 化学工程与技术 | K65: 统考
A66: 63 | B66: 114141113021905 | C66: 张晨 | D66: 84.33 | E66: 76.00 | F66: 81.83 | G66: 311 | H66: 68.09 | I66: 是 | J66: 化学工程与技术 | K66: 统考
A67: 64 | B67: 114141121102587 | C67: 田乐斌 | D67: 73.89 | E67: 60.00 | F67: 69.72 | G67: 336 | H67: 67.96 | I67: 是 | J67: 化学工程与技术 | K67: 统考
A68: 65 | B68: 114141111641373 | C68: 宋大山 | D68: 88.02 | E68: 86.14 | F68: =D68*0.7+E68*0.3 -> 87.46 | G68: 297 | H68: =F68*0.3+G68/5*0.7 -> 67.82 | I68: 是 | J68: 化学工程与技术 | K68: 统考
A69: 66 | B69: 114141141343875 | C69: 史书今 | D69: 81.33 | E69: 70.43 | F69: 78.06 | G69: 317 | H69: 67.80 | I69: 候补 | K69: 统考
A70: 67 | B70: 114141112181828 | C70: 郝易 | D70: 81.67 | E70: 66.29 | F70: 77.05 | G70: 314 | H70: 67.08 | I70: 候补 | K70: 统考
A71: 68 | B71: 114141134063066 | C71: 汪子颖 | D71: 73.00 | E71: 88.14 | F71: 77.54 | G71: 310 | H71: 66.66 | I71: 否 | K71: 统考
A72: 69 | B72: 114141121042502 | C72: 张司琪 | D72: 71.56 | E72: 68.86 | F72: 70.75 | G72: 323 | H72: 66.44 | I72: 否 | K72: 统考
A73: 70 | B73: 114141113112113 | C73: 裴红静 | D73: 87.33 | E73: 70.43 | F73: 82.26 | G73: 297 | H73: 66.26 | I73: 否 | K73: 统考
A74: 71 | B74: 114141113072023 | C74: 尚继瑞 | D74: 76.11 | E74: 55.43 | F74: 69.91 | G74: 323 | H74: 66.19 | I74: 否 | K74: 统考
A75: 72 | B75: 114141137133591 | C75: 季天罡 | D75: 69.33 | E75: 58.86 | F75: 66.19 | G75: 329 | H75: 65.92 | I75: 否 | K75: 统考
A76: 73 | B76: 114141161034563 | C76: 绳阳 | D76: 79.56 | E76: 64.71 | F76: 75.10 | G76: 309 | H76: 65.79 | I76: 否 | K76: 统考
A77: 74 | B77: 114141121192681 | C77: 李志颖 | D77: 71.89 | E77: 71.86 | F77: 71.88 | G77: 307 | H77: 64.54 | I77: 否 | K77: 统考
A78: 75 | B78: 114141151144330 | C78: 杨相禄 | D78: 73.67 | E78: 63.86 | F78: 70.72 | G78: 305 | H78: 63.92 | I78: 否 | K78: 统考
A80: 备注：如果排名靠前的考生放弃或失去拟录取资格，按照候补名单的顺序依次递补。

Sheet 化学工艺系专硕
A1: 化学工程与环境学院2021级全日制专业学位硕士研究生复试成绩汇总暨拟录取名单统计表
A2: 复试小组名称： 化学工艺系（专业型）
A3: 序号 | B3: 考生编号 | C3: 姓名 | D3: 面试专业成绩 | E3: 面试英语成绩 | F3: 复试成绩 | G3: 初试成绩 | H3: 总成绩 | I3: 是否拟录取 | J3: 拟录取专业 | K3: 考生来源(推免/优秀营员/统考) | L3: 工作站 | M3: 备注
A4: 1 | B4: 114141137023326 | C4: 苑显龙 | D4: 87.67 | E4: 84.33 | F4: 86.33 | G4: 384 | H4: 79.66 | I4: 是 | J4: 材料与化工 | K4: 夏令营优秀营员
A5: 2 | B5: 114141121022493 | C5: 李宇慧 | D5: 88.00 | E5: 88.33 | F5: 88.13 | G5: 373 | H5: 78.66 | I5: 是 | J5: 材料与化工 | K5: 夏令营优秀营员
A6: 3 | B6: 114141121102589 | C6: 王梦 | D6: 89.67 | E6: 87.33 | F6: 88.73 | G6: 336 | H6: 73.66 | I6: 是 | J6: 材料与化工 | K6: 夏令营优秀营员
A7: 4 | B7: 114141121162643 | C7: 熊传煌 | D7: 84.00 | E7: 74.17 | F7: 81.05 | G7: 381 | H7: 77.66 | I7: 是 | J7: 材料与化工 | K7: 统考
A8: 5 | B8: 114141113152172 | C8: 王时雨 | D8: 84.33 | E8: 87.17 | F8: 85.18 | G8: 367 | H8: 76.94 | I8: 是 | J8: 材料与化工 | K8: 统考
A9: 6 | B9: 114141137153659 | C9: 穆亚鑫 | D9: 78.17 | E9: 70.00 | F9: 75.72 | G9: 378 | H9: 75.64 | I9: 是 | J9: 材料与化工 | K9: 统考
A10: 7 | B10: 114141113172215 | C10: 陈胜超 | D10: 81.67 | E10: 77.50 | F10: 80.42 | G10: 362 | H10: 74.81 | I10: 是 | J10: 材料与化工 | K10: 统考
A11: 8 | B11: 114141151104310 | C11: 李长永 | D11: 78.83 | E11: 80.00 | F11: 79.18 | G11: 362 | H11: 74.44 | I11: 是 | J11: 材料与化工 | K11: 统考
A12: 9 | B12: 114141137063444 | C12: 尹蓉蓉 | D12: 81.33 | E12: 76.67 | F12: 79.93 | G12: 356 | H12: 73.82 | I12: 是 | J12: 材料与化工 | K12: 统考
A13: 10 | B13: 114141161034499 | C13: 郭佳鹏 | D13: 77.33 | E13: 68.33 | F13: 74.63 | G13: 367 | H13: 73.77 | I13: 是 | J13: 材料与化工 | K13: 统考
A14: 11 | B14: 114141134063065 | C14: 宋良宇 | D14: 78.83 | E14: 60.83 | F14: 73.43 | G14: 363 | H14: 72.85 | I14: 是 | J14: 材料与化工 | K14: 统考
A15: 12 | B15: 114141137033364 | C15: 李汝振 | D15: 83.67 | E15: 83.67 | F15: 83.67 | G15: 341 | H15: 72.84 | I15: 是 | J15: 材料与化工 | K15: 统考
A16: 13 | B16: 114141137063440 | C16: 孙晓旭 | D16: 79.50 | E16: 70.50 | F16: 76.80 | G16: 351 | H16: 72.18 | I16: 是 | J16: 材料与化工 | K16: 统考
A17: 14 | B17: 114141137013234 | C17: 周琳睿 | D17: 84.33 | E17: 73.33 | F17: 81.03 | G17: 339 | H17: 71.77 | I17: 是 | J17: 材料与化工 | K17: 统考
A18: 15 | B18: 114141143154101 | C18: 赵赛 | D18: 77.33 | E18: 63.00 | F18: 73.03 | G18: 356 | H18: 71.75 | I18: 是 | J18: 材料与化工 | K18: 统考
A19: 16 | B19: 114141137063446 | C19: 张旭 | D19: 80.67 | E19: 76.33 | F19: 79.37 | G19: 336 | H19: 70.85 | I19: 是 | J19: 材料与化工 | K19: 统考
A20: 17 | B20: 114141141523928 | C20: 江志虎 | D20: 75.50 | E20: 62.67 | F20: 71.65 | G20: 350 | H20: 70.50 | I20: 是 | J20: 材料与化工 | K20: 统考
A21: 18 | B21: 114141137023318 | C21: 任晓聪 | D21: 76.67 | E21: 70.67 | F21: 74.87 | G21: 342 | H21: 70.34 | I21: 是 | J21: 材料与化工 | K21: 统考
A22: 19 | B22: 114141137143633 | C22: 杜吉超 | D22: 75.00 | E22: 75.00 | F22: 75.00 | G22: 340 | H22: 70.10 | I22: 是 | J22: 材料与化工 | K22: 统考
A23: 20 | B23: 114141137093560 | C23: 李永强 | D23: 88.67 | E23: 58.17 | F23: 79.52 | G23: 330 | H23: 70.06 | I23: 是 | J23: 材料与化工 | K23: 统考
A24: 21 | B24: 114141113152173 | C24: 张东伟 | D24: 79.50 | E24: 76.33 | F24: 78.55 | G24: 318 | H24: 68.09 | I24: 是 | J24: 材料与化工 | K24: 统考
A25: 22 | B25: 114141137023322 | C25: 王涛 | D25: 80.50 | E25: 72.50 | F25: 78.10 | G25: 314 | H25: 67.39 | I25: 是 | J25: 材料与化工 | K25: 统考
A26: 23 | B26: 114141137023317 | C26: 马延明 | D26: 79.67 | E26: 67.00 | F26: 75.87 | G26: 314 | H26: 66.72 | I26: 是 | J26: 材料与化工 | K26: 统考
A27: 24 | B27: 114141137033372 | C27: 王磊灏 | D27: 80.50 | E27: 87.33 | F27: 82.55 | G27: 296 | H27: 66.21 | I27: 是 | J27: 材料与化工 | K27: 统考
A28: 25 | B28: 114141137083541 | C28: 颜晓航 | D28: 82.83 | E28: 65.00 | F28: 77.48 | G28: 305 | H28: 65.95 | I28: 是 | J28: 材料与化工 | K28: 统考
A29: 26 | B29: 114141121102526 | C29: 张蓝仪 | D29: 78.50 | E29: 65.33 | F29: 74.55 | G29: 310 | H29: 65.77 | I29: 是 | J29: 材料与化工 | K29: 统考
A30: 27 | B30: 114141137023323 | C30: 杨川 | D30: 83.67 | E30: 83.00 | F30: 83.47 | G30: 287 | H30: 65.22 | I30: 是 | J30: 材料与化工 | K30: 统考
A31: 28 | B31: 114141113142153 | C31: 刘旭 | D31: 75.33 | E31: 66.67 | F31: 72.73 | G31: 308 | H31: 64.94 | I31: 是 | J31: 材料与化工 | K31: 统考
A32: 29 | B32: 114141137073474 | C32: 王娣 | D32: 79.17 | E32: 78.17 | F32: 78.87 | G32: 294 | H32: 64.82 | I32: 是 | J32: 材料与化工 | K32: 统考
A33: 30 | B33: 114141113262278 | C33: 王琪 | D33: 76.33 | E33: 72.00 | F33: 75.03 | G33: 302 | H33: 64.79 | I33: 是 | J33: 材料与化工 | K33: 统考
A34: 31 | B34: 114141137013223 | C34: 李明杰 | D34: 76.50 | E34: 55.83 | F34: 70.30 | G34: 312 | H34: 64.77 | I34: 是 | J34: 材料与化工 | K34: 统考
A35: 32 | B35: 114141122062736 | C35: 宋艳新 | D35: 82.00 | E35: 51.67 | F35: 72.90 | G35: 303 | H35: 64.29 | I35: 是 | J35: 材料与化工 | K35: 统考
A36: 33 | B36: 114141137073508 | C36: 张继德 | D36: 74.17 | E36: 72.67 | F36: 73.72 | G36: 299 | H36: 63.98 | I36: 是 | J36: 材料与化工 | K36: 统考
A37: 34 | B37: 114141137083537 | C37: 刘永高 | D37: 79.17 | E37: 57.83 | F37: 72.77 | G37: 301 | H37: 63.97 | I37: 是 | J37: 材料与化工 | K37: 统考
A38: 35 | B38: 114141137143632 | C38: 程佳婷 | D38: 75.33 | E38: 72.83 | F38: 74.58 | G38: 297 | H38: 63.96 | I38: 是 | J38: 材料与化工 | K38: 统考
A39: 36 | B39: 114141161034496 | C39: 陈霆甲 | D39: 80.50 | E39: 66.83 | F39: 76.40 | G39: 284 | H39: 62.68 | I39: 是 | J39: 材料与化工 | K39: 统考

Sheet 化学工程系学硕
A1: 化学工程与环境学院2021级全日制硕士研究生复试成绩汇总暨拟录取名单统计表
A2: 复试小组名称： 化学工程系（学术型）
A3: 序号 | B3: 考生编号 | C3: 姓名 | D3: 面试专业成绩 | E3: 面试英语成绩 | F3: 复试成绩 | G3: 初试成绩 | H3: 总成绩 | I3: 是否拟录取 | J3: 拟录取专业 | K3: 考生来源(推免/优秀营员/统考) | L3: 备注
A4: 1 | C4: 潘惠媛 | F4: 91.33 | I4: 是 | J4: 化学工程与技术 | K4: 推免
A5: 2 | C5: 王艺慧 | F5: 91.20 | I5: 是 | J5: 化学工程与技术 | K5: 推免 | L5: 助管
A6: 3 | C6: 李梦 | F6: 89.13 | I6: 是 | J6: 化学工程与技术 | K6: 推免
A7: 4 | C7: 宋雨珍 | F7: 87.40 | I7: 是 | J7: 化学工程与技术 | K7: 推免
A8: 5 | C8: 李昕阳 | F8: 86.00 | I8: 是 | J8: 化学工程与技术 | K8: 推免 | L8: 助管
A9: 6 | C9: 李湍 | F9: 85.66 | I9: 是 | J9: 化学工程与技术 | K9: 推免 | L9: 助管
A10: 7 | C10: 李孟原 | F10: 85.20 | I10: 是 | J10: 化学工程与技术 | K10: 推免
A11: 8 | C11: 张琳怡 | F11: 80.00 | I11: 是 | J11: 化学工程与技术 | K11: 推免
A12: 9 | B12: 114141111641395 | C12: 朱悦 | D12: 87.33 | E12: 86.00 | F12: 86.80 | G12: 372 | H12: =G12/5*0.7+F12*0.3 -> 78.12 | I12: 是 | J12: 化学工程与技术 | K12: 夏令营优秀营员
A13: 10 | B13: 114141121102571 | C13: 杜洋 | D13: 88.33 | E13: 89.33 | F13: 88.73 | G13: 346 | H13: 75.06 | I13: 是 | J13: 化学工程与技术 | K13: 夏令营优秀营员
A14: 11 | B14: 114141137013228 | C14: 苏涧雯 | D14: 87.00 | E14: 86.00 | F14: 86.60 | G14: 345 | H14: 74.28 | I14: 是 | J14: 化学工程与技术 | K14: 夏令营优秀营员
A15: 12 | B15: 114141111641158 | C15: 石硕 | D15: 86.00 | E15: 87.00 | F15: 86.40 | G15: 343 | H15: 73.94 | I15: 是 | J15: 化学工程与技术 | K15: 夏令营优秀营员
A16: 13 | B16: 114141165054909 | C16: 刘浪 | D16: 89.00 | E16: 88.30 | F16: 88.72 | G16: 335 | H16: 73.52 | I16: 是 | J16: 化学工程与技术 | K16: 夏令营优秀营员
A17: 14 | B17: 114141165054914 | C17: 王飞 | D17: 91.00 | E17: 86.00 | F17: 89.00 | G17: 332 | H17: 73.18 | I17: 是 | J17: 化学工程与技术 | K17: 夏令营优秀营员
A18: 15 | B18: 114141111641376 | C18: 何祉桥 | D18: 93.67 | E18: 91.00 | F18: 92.60 | G18: 321 | H18: 72.72 | I18: 是 | J18: 化学工程与技术 | K18: 夏令营优秀营员
A19: 16 | B19: 114141111641058 | C19: 田雪铭 | D19: 91.00 | E19: 92.00 | F19: 91.40 | G19: 322 | H19: 72.50 | I19: 是 | J19: 化学工程与技术 | K19: 夏令营优秀营员
A20: 17 | B20: 114141111641180 | C20: 崔祎 | D20: 86.67 | E20: 87.67 | F20: 87.07 | G20: 322 | H20: 71.20 | I20: 是 | J20: 化学工程与技术 | K20: 夏令营优秀营员
A21: 18 | B21: 114141111641617 | C21: 王国虎 | D21: 90.33 | E21: 91.33 | F21: 90.73 | G21: 306 | H21: 70.06 | I21: 是 | J21: 化学工程与技术 | K21: 夏令营优秀营员
A22: 19 | B22: 114141144014125 | C22: 卢智宇 | D22: 77.00 | E22: 77.00 | F22: =D22*0.7+E22*0.3 -> 77.00 | G22: 392 | H22: 77.98 | I22: 是 | J22: 化学工程与技术 | K22: 统考
A23: 20 | B23: 114141151104285 | C23: 王明 | D23: 77.56 | E23: 87.80 | F23: 80.63 | G23: 382 | H23: 77.67 | I23: 是 | J23: 化学工程与技术 | K23: 统考
A24: 21 | B24: 114141111641049 | C24: 池宇 | D24: 80 | E24: 80 | F24: 79.94 | G24: 359 | H24: 74.24 | I24: 是 | J24: 化学工程与技术 | K24: 统考
A25: 22 | B25: 114141137063416 | C25: 张辉 | D25: 77 | E25: 80 | F25: 77.71 | G25: 361 | H25: 73.85 | I25: 是 | J25: 化学工程与技术 | K25: 统考
A26: 23 | B26: 114141114252420 | C26: 段锦荣 | D26: 77.11 | E26: 78.60 | F26: 77.56 | G26: 360 | H26: 73.67 | I26: 是 | J26: 化学工程与技术 | K26: 统考
A27: 24 | B27: 114141137033366 | C27: 孟祥宇 | D27: 70.44 | E27: 75.60 | F27: 71.99 | G27: 371 | H27: 73.54 | I27: 是 | J27: 化学工程与技术 | K27: 统考
A28: 25 | B28: 114141142434075 | C28: 徐新勇 | D28: 74.67 | E28: 86.60 | F28: 78.25 | G28: 357 | H28: 73.45 | I28: 是 | J28: 化学工程与技术 | K28: 统考
A29: 26 | B29: 114141121102586 | C29: 汤梦蝶 | D29: 70.78 | E29: 89.00 | F29: 76.24 | G29: 361 | H29: 73.41 | I29: 是 | J29: 化学工程与技术 | K29: 统考
A30: 27 | B30: 114141111641526 | C30: 徐万里 | D30: 73.67 | E30: 81.00 | F30: 75.87 | G30: 357 | H30: 72.74 | I30: 是 | J30: 化学工程与技术 | K30: 统考
A31: 28 | B31: 114141113122141 | C31: 南睿 | D31: 78.89 | E31: 87.00 | F31: 81.32 | G31: 342 | H31: 72.28 | I31: 是 | J31: 化学工程与技术 | K31: 统考
A32: 29 | B32: 114141111640967 | C32: 陈一新 | D32: 77.44 | E32: 79.00 | F32: 77.91 | G32: 342 | H32: 71.25 | I32: 是 | J32: 化学工程与技术 | K32: 统考
A33: 30 | B33: 114141137073472 | C33: 王浩然 | D33: 69.44 | E33: 90.60 | F33: 75.79 | G33: 337 | H33: 69.92 | I33: 是 | J33: 化学工程与技术 | K33: 统考
A34: 31 | B34: 114141134063063 | C34: 范程宇 | D34: 68.89 | E34: 77.20 | F34: 71.38 | G34: 344 | H34: 69.57 | I34: 是 | J34: 化学工程与技术 | K34: 统考
A35: 32 | B35: 114141137033360 | C35: 宫汝景 | D35: 69.56 | E35: 74.80 | F35: 71.13 | G35: 343 | H35: 69.36 | I35: 是 | J35: 化学工程与技术 | K35: 统考
A36: 33 | B36: 114141141143801 | C36: 黄丁丁 | D36: 79.22 | E36: 74.20 | F36: 77.72 | G36: 320 | H36: 68.11 | I36: 是 | J36: 化学工程与技术 | K36: 统考
A37: 34 | B37: 114141114072296 | C37: 阴慧敏 | D37: 79.11 | E37: 86.40 | F37: 81.30 | G37: 311 | H37: 67.93 | I37: 是 | J37: 化学工程与技术 | K37: 统考
A38: 35 | B38: 114141165054911 | C38: 罗嘉 | D38: 71.11 | E38: 72.40 | F38: 71.50 | G38: 328 | H38: 67.37 | I38: 是 | J38: 化学工程与技术 | K38: 统考
A39: 36 | B39: 114141165054906 | C39: 蒋泽龙 | D39: 68.44 | E39: 67.60 | F39: 68.19 | G39: 335 | H39: 67.36 | I39: 是 | J39: 化学工程与技术 | K39: 统考
A40: 37 | B40: 114141137083535 | C40: 李龙静 | D40: 67.00 | E40: 78.60 | F40: 70.48 | G40: 330 | H40: 67.34 | I40: 是 | J40: 化学工程与技术 | K40: 统考
A41: 38 | B41: 114141137173684 | C41: 许怀宇 | D41: 77.78 | E41: 67.00 | F41: 74.54 | G41: 320 | H41: 67.16 | I41: 是 | J41: 化学工程与技术 | K41: 统考
A42: 39 | B42: 114141111641613 | C42: 刘文瑞 | D42: 73.89 | E42: 79.00 | F42: 75.42 | G42: 317 | H42: 67.01 | I42: 是 | J42: 化学工程与技术 | K42: 统考
A43: 40 | B43: 114141165155039 | C43: 吕文浩 | D43: 70.56 | E43: 78.40 | F43: 72.91 | G43: 318 | H43: 66.39 | I43: 是 | J43: 化学工程与技术 | K43: 统考
A44: 41 | B44: 114141161034502 | C44: 刘康 | D44: 69.67 | E44: 74.80 | F44: 71.21 | G44: 320 | H44: 66.16 | I44: 是 | J44: 化学工程与技术 | K44: 统考
A45: 42 | B45: 114141137083534 | C45: 贾晓浩 | D45: 80.56 | E45: 77.60 | F45: 79.67 | G45: 298 | H45: 65.62 | I45: 是 | J45: 化学工程与技术 | K45: 统考
A46: 43 | B46: 114141165054913 | C46: 万自杰 | D46: 70.11 | E46: 62.40 | F46: 67.80 | G46: 323 | H46: 65.56 | I46: 是 | J46: 化学工程与技术 | K46: 统考
A47: 44 | B47: 114141141233843 | C47: 王雅靖 | D47: 73.33 | E47: 73.00 | F47: 73.23 | G47: 311 | H47: 65.51 | I47: 是 | J47: 化学工程与技术 | K47: 统考
A48: 45 | B48: 114141121162642 | C48: 王栋栋 | D48: 70.33 | E48: 77.60 | F48: 72.51 | G48: 307 | H48: 64.73 | I48: 是 | J48: 化学工程与技术 | K48: 统考
A49: 46 | B49: 114141137093563 | C49: 吕政杭 | D49: 60.00 | E49: 62.00 | F49: 60.60 | G49: 305 | H49: 60.88 | I49: 候补 | K49: 统考
A50: 47 | B50: 114141151104281 | C50: 陈江萍 | D50: 60.11 | E50: 62.00 | F50: 60.68 | G50: 298 | H50: 59.92 | I50: 否 | K50: 统考
A51: 48 | B51: 114141161034498 | C51: 崔祥茜 | D51: 60.00 | E51: 60.00 | F51: 60.00 | G51: 299 | H51: 59.86 | I51: 否 | K51: 统考
A52: 49 | B52: 114141165054921 | C52: 赵齐 | D52: 60.00 | E52: 60.00 | F52: 60.00 | G52: 298 | H52: 59.72 | I52: 否 | K52: 统考
A54: 备注：如果排名靠前的考生放弃或失去拟录取资格，按照候补名单的顺序依次递补。

Sheet 化学工程系专硕
A1: 化学工程与环境学院2021级全日制专业学位硕士研究生复试成绩汇总暨拟录取名单统计表
A2: 复试小组名称： 化学工程系（专业型）
A3: 序号 | B3: 考生编号 | C3: 姓名 | D3: 面试专业成绩 | E3: 面试英语成绩 | F3: 复试成绩 | G3: 初试成绩 | H3: 总成绩 | I3: 是否拟录取 | J3: 拟录取专业 | K3: 考生来源(推免/优秀营员/统考) | L3: 备注
A4: 1 | C4: 于川 | F4: 88.60 | J4: 材料与化工 | K4: 推免
A5: 2 | C5: 邢希贝 | F5: 81.76 | J5: 材料与化工 | K5: 推免
A6: 3 | B6: 114141137073476 | C6: 杨同 | D6: 89.00 | E6: 91.00 | F6: =D6*0.7+E6*0.3 -> 89.60 | G6: 351 | H6: =G6/5*0.7+F6*0.3 -> 76.02 | I6: 是 | J6: 材料与化工 | K6: 夏令营优秀营员
A7: 4 | B7: 114141121462701 | C7: 金姝彤 | D7: 89.00 | E7: 85.00 | F7: 87.80 | G7: 285 | H7: 66.24 | I7: 是 | J7: 材料与化工 | K7: 夏令营优秀营员
A8: 5 | B8: 114141113021901 | C8: 陈俊杰 | D8: 73.83 | E8: 66.20 | F8: 71.54 | G8: 393 | H8: 76.48 | I8: 是 | J8: 材料与化工 | K8: 统考
A9: 6 | B9: 114141141563937 | C9: 张佳辉 | D9: 70.83 | E9: 68.00 | F9: 69.98 | G9: 387 | H9: 75.18 | I9: 是 | J9: 材料与化工 | K9: 统考
A10: 7 | B10: 114141123232895 | C10: 李国栋 | D10: 85.00 | E10: 81.00 | F10: 83.80 | G10: 355 | H10: 74.84 | I10: 是 | J10: 材料与化工 | K10: 统考
A11: 8 | B11: 114141121132629 | C11: 赵晓晴 | D11: 68.33 | E11: 75.00 | F11: 70.33 | G11: 380 | H11: 74.30 | I11: 是 | J11: 材料与化工 | K11: 统考
A12: 9 | B12: 114141137073468 | C12: 廉开程 | D12: 75.00 | E12: 74.60 | F12: 74.88 | G12: 360 | H12: 72.86 | I12: 是 | J12: 材料与化工 | K12: 统考
A13: 10 | B13: 114141137063434 | C13: 刘莹莹 | D13: 80.50 | E13: 79.60 | F13: 80.23 | G13: 345 | H13: 72.37 | I13: 是 | J13: 材料与化工 | K13: 统考
A14: 11 | B14: 114141121032499 | C14: 刘晓东 | D14: 74.17 | E14: 78.00 | F14: 75.32 | G14: 352 | H14: 71.88 | I14: 是 | J14: 材料与化工 | K14: 统考
A15: 12 | B15: 114141134603101 | C15: 陈君 | D15: 73.33 | E15: 73.00 | F15: 73.23 | G15: 356 | H15: 71.81 | I15: 是 | J15: 材料与化工 | K15: 统考
A16: 13 | B16: 114141113092052 | C16: 杨田萌 | D16: 74.17 | E16: 71.80 | F16: 73.46 | G16: 348 | H16: 70.76 | I16: 是 | J16: 材料与化工 | K16: 统考
A17: 14 | B17: 114141137143638 | C17: 邵月梅 | D17: 74.17 | E17: 70.60 | F17: 73.10 | G17: 339 | H17: 69.39 | I17: 是 | J17: 材料与化工 | K17: 统考
A18: 15 | B18: 114141137033365 | C18: 马强 | D18: 72.50 | E18: 71.20 | F18: 72.11 | G18: 340 | H18: 69.23 | I18: 是 | J18: 材料与化工 | K18: 统考
A19: 16 | B19: 114141137143639 | C19: 魏少平 | D19: 76.67 | E19: 65.20 | F19: 73.23 | G19: 329 | H19: 68.03 | I19: 是 | J19: 材料与化工 | K19: 统考
A20: 17 | B20: 114141121132624 | C20: 王帅 | D20: 69.17 | E20: 66.40 | F20: 68.34 | G20: 332 | H20: 66.98 | I20: 是 | J20: 材料与化工 | K20: 统考
A21: 18 | B21: 114141144284172 | C21: 李伟静 | D21: 64.17 | E21: 78.20 | F21: 68.38 | G21: 331 | H21: 66.85 | I21: 是 | J21: 材料与化工 | K21: 统考
A22: 19 | B22: 114141137073509 | C22: 赵志浩 | D22: 74.17 | E22: 63.40 | F22: 70.94 | G22: 318 | H22: 65.80 | I22: 是 | J22: 材料与化工 | K22: 统考
A23: 20 | B23: 114141122062734 | C23: 刘学治 | D23: 70.83 | E23: 67.40 | F23: 69.80 | G23: 316 | H23: 65.18 | I23: 是 | J23: 材料与化工 | K23: 统考
A24: 21 | B24: 114141150204232 | C24: 周文睿 | D24: 69.17 | E24: 78.60 | F24: 72.00 | G24: 306 | H24: 64.44 | I24: 是 | J24: 材料与化工 | K24: 统考
A25: 22 | B25: 114141137073510 | C25: 祝怀英 | D25: 76.67 | E25: 69.20 | F25: 74.43 | G25: 299 | H25: 64.19 | I25: 是 | J25: 材料与化工 | K25: 统考
A26: 23 | B26: 114141161034501 | C26: 李阳 | D26: 71.33 | E26: 71.40 | F26: 71.35 | G26: 305 | H26: 64.11 | I26: 是 | J26: 材料与化工 | K26: 统考
A27: 24 | B27: 114141137023315 | C27: 刘文强 | D27: 70.83 | E27: 64.4 | F27: 68.90 | G27: 308 | H27: 63.79 | I27: 是 | J27: 材料与化工 | K27: 统考
A28: 25 | B28: 114141136073153 | C28: 吴亚男 | D28: 70.00 | E28: 74.80 | F28: 71.44 | G28: 299 | H28: 63.29 | I28: 是 | J28: 材料与化工 | K28: 统考
A29: 26 | B29: 114141121122615 | C29: 苑泊盈 | D29: 75.83 | E29: 71.60 | F29: 74.56 | G29: 275 | H29: 60.87 | I29: 是 | J29: 材料与化工 | K29: 统考
A30: 27 | B30: 114141162064675 | C30: 寇文敏 | D30: 67.17 | E30: 67.00 | F30: 67.12 | G30: 269 | H30: 57.80 | I30: 是 | J30: 材料与化工 | K30: 统考

Sheet 能源与催化工程系学硕
A1: 化学工程与环境学院2021级全日制硕士研究生复试成绩汇总暨拟录取名单统计表
A2: 复试小组名称：能源与催化工程系（学术型）
A3: 序号 | B3: 考生编号 | C3: 姓名 | D3: 面试专业成绩 | E3: 面试英语成绩 | F3: 复试成绩 | G3: 初试成绩 | H3: 总成绩 | I3: 是否拟录取 | J3: 拟录取专业 | K3: 考生来源(推免/优秀营员/统考) | L3: 备注
A4: 1 | C4: 张铸文 | F4: 85.67 | I4: 是 | J4: 化学工程与技术 | K4: 推免
A5: 2 | B5: 114141141333865 | C5: 牛慕凡 | D5: 90.67 | E5: 90.33 | F5: 90.53 | G5: =VLOOKUP(C5:C36,[1]化学工程与技术!$A$2:$B$149,2,0) -> 390 | H5: =G5/5*0.7+F5*0.3 -> 81.76 | I5: 是 | J5: 化学工程与技术 | K5: 夏令营优秀营员
A6: 3 | B6: 114141121102579 | C6: 李声笛 | D6: 93.00 | E6: 88.33 | F6: 91.13 | G6: =VLOOKUP(C6:C37,[1]化学工程与技术!$A$2:$B$149,2,0) -> 351 | H6: 76.48 | I6: 是 | J6: 化学工程与技术 | K6: 夏令营优秀营员
A7: 4 | B7: 114141111641637 | C7: 海小祥 | D7: 95.00 | E7: 90.33 | F7: 93.13 | G7: =VLOOKUP(C7:C38,[1]化学工程与技术!$A$2:$B$149,2,0) -> 328 | H7: 73.86 | I7: 是 | J7: 化学工程与技术 | K7: 夏令营优秀营员
A8: 5 | B8: 114141111641611 | C8: 冯博 | D8: 89.67 | E8: 89.00 | F8: 89.40 | G8: =VLOOKUP(C8:C39,[1]化学工程与技术!$A$2:$B$149,2,0) -> 333 | H8: 73.44 | I8: 是 | J8: 化学工程与技术 | K8: 夏令营优秀营员
A9: 6 | B9: 114141111641534 | C9: 黄柯文 | D9: 87.33 | E9: 81.67 | F9: 85.07 | G9: =VLOOKUP(C9:C40,[1]化学工程与技术!$A$2:$B$149,2,0) -> 319 | H9: 70.18 | I9: 是 | J9: 化学工程与技术 | K9: 夏令营优秀营员
A10: 7 | B10: 114141111641595 | C10: 胡溢玚 | D10: 87.00 | E10: 86.00 | F10: 86.60 | G10: =VLOOKUP(C10:C41,[1]化学工程与技术!$A$2:$B$149,2,0) -> 314 | H10: 69.94 | I10: 是 | J10: 化学工程与技术 | K10: 夏令营优秀营员
A11: 8 | B11: 114141137133605 | C11: 臧宏扬 | D11: 88.67 | E11: 88.67 | F11: 88.67 | G11: =VLOOKUP(C11:C42,[1]化学工程与技术!$A$2:$B$149,2,0) -> 304 | H11: 69.16 | I11: 是 | J11: 化学工程与技术 | K11: 夏令营优秀营员
A12: 9 | B12: 114141161034561 | C12: 李瑞轩 | D12: 77.00 | E12: 68.00 | F12: 74.30 | G12: 386 | H12: 76.33 | I12: 是 | J12: 化学工程与技术 | K12: 统考
A13: 10 | B13: 114141161034574 | C13: 周宜林 | D13: 78.80 | E13: 69.17 | F13: 75.91 | G13: 380 | H13: 75.97 | I13: 是 | J13: 化学工程与技术 | K13: 统考
A14: 11 | B14: 114141111641383 | C14: 邴研 | D14: 89.60 | E14: 71.00 | F14: 84.02 | G14: 355 | H14: 74.91 | I14: 是 | J14: 化学工程与技术 | K14: 统考
A15: 12 | B15: 114141137083539 | C15: 孟岩 | D15: 74.40 | E15: 82.67 | F15: 76.88 | G15: 359 | H15: 73.32 | I15: 是 | J15: 化学工程与技术 | K15: 统考
A16: 13 | B16: 114141111641027 | C16: 贾鑫 | D16: 76.20 | E16: 78.17 | F16: 76.79 | G16: 350 | H16: 72.04 | I16: 是 | J16: 化学工程与技术 | K16: 统考
A17: 14 | B17: 114141141323861 | C17: 尚春丽 | D17: 74.60 | E17: 71.00 | F17: 73.52 | G17: 354 | H17: 71.62 | I17: 是 | J17: 化学工程与技术 | K17: 统考
A18: 15 | B18: 114141137133603 | C18: 王浩 | D18: 75.00 | E18: 76.00 | F18: 75.30 | G18: 349 | H18: 71.45 | I18: 是 | J18: 化学工程与技术 | K18: 统考
A19: 16 | B19: 114141121462707 | C19: 张哲 | D19: 69.20 | E19: 78.00 | F19: 71.84 | G19: 350 | H19: 70.55 | I19: 是 | J19: 化学工程与技术 | K19: 统考
A20: 17 | B20: 114141121102527 | C20: 张腾跃 | D20: 73.60 | E20: 76.17 | F20: 74.37 | G20: 341 | H20: 70.05 | I20: 是 | J20: 化学工程与技术 | K20: 统考
A21: 18 | B21: 114141113041971 | C21: 李晨 | D21: 78.60 | E21: 87.50 | F21: 81.27 | G21: 326 | H21: 70.02 | I21: 是 | J21: 化学工程与技术 | K21: 统考
A22: 19 | B22: 114141113021886 | C22: 刘璨 | D22: 83.80 | E22: 85.00 | F22: 84.16 | G22: 318 | H22: 69.77 | I22: 是 | J22: 化学工程与技术 | K22: 统考
A23: 20 | B23: 114141111641532 | C23: 刘尚书 | D23: 82.80 | E23: 88.00 | F23: 84.36 | G23: 307 | H23: 68.29 | I23: 是 | J23: 化学工程与技术 | K23: 统考
A24: 21 | B24: 114141111641575 | C24: 黄海洋 | D24: 74.60 | E24: 77.33 | F24: 75.42 | G24: 323 | H24: 67.85 | I24: 是 | J24: 化学工程与技术 | K24: 统考
A25: 22 | B25: 114141165054922 | C25: 赵少健 | D25: 76.60 | E25: 73.83 | F25: 75.77 | G25: 321 | H25: 67.67 | I25: 是 | J25: 化学工程与技术 | K25: 统考
A26: 23 | B26: 114141137083528 | C26: 袁兆朔 | D26: 76.80 | E26: 71.33 | F26: 75.16 | G26: 322 | H26: 67.63 | I26: 是 | J26: 化学工程与技术 | K26: 统考
A27: 24 | B27: 114141136023146 | C27: 江蒙伟 | D27: 75.20 | E27: 72.50 | F27: 74.39 | G27: 323 | H27: 67.54 | I27: 是 | J27: 化学工程与技术 | K27: 统考
A28: 25 | B28: 114141111641508 | C28: 孙成蓥 | D28: 81.20 | E28: 89.00 | F28: 83.54 | G28: 303 | H28: 67.48 | I28: 是 | J28: 化学工程与技术 | K28: 统考
A29: 26 | B29: 114141137083527 | C29: 吴家琪 | D29: 86.40 | E29: 76.50 | F29: 83.43 | G29: 302 | H29: 67.31 | I29: 是 | J29: 化学工程与技术 | K29: 统考
A30: 27 | B30: 114141111640987 | C30: 姜珊 | D30: 75.80 | E30: 82.83 | F30: 77.91 | G30: 312 | H30: 67.05 | I30: 是 | J30: 化学工程与技术 | K30: 统考
A31: 28 | B31: 114141153124405 | C31: 官宇 | D31: 75.60 | E31: 71.83 | F31: 74.47 | G31: 314 | H31: 66.30 | I31: 是 | J31: 化学工程与技术 | K31: 统考
A32: 29 | B32: 114141113152166 | C32: 谷敏 | D32: 84.40 | E32: 76.00 | F32: 81.88 | G32: 298 | H32: 66.28 | I32: 是 | J32: 化学工程与技术 | K32: 统考
A33: 30 | B33: 114141114152360 | C33: 杜卫博 | D33: 72.60 | E33: 71.50 | F33: 72.27 | G33: 318 | H33: 66.20 | I33: 是 | J33: 化学工程与技术 | K33: 统考
A34: 31 | B34: 114141121102604 | C34: 赵春晓 | D34: 67.60 | E34: 70.50 | F34: 68.47 | G34: 326 | H34: 66.18 | I34: 是 | J34: 化学工程与技术 | K34: 统考
A35: 32 | B35: 114141114182373 | C35: 杨丽 | D35: 79.20 | E35: 79.00 | F35: 79.14 | G35: 303 | H35: 66.16 | I35: 是 | J35: 化学工程与技术 | K35: 统考
A36: 33 | B36: 114141137033358 | C36: 程明健 | D36: 71.20 | E36: 80.17 | F36: 73.89 | G36: 314 | H36: 66.13 | I36: 是 | J36: 化学工程与技术 | K36: 统考
A37: 34 | B37: 114141151104286 | C37: 王琦 | D37: 70.60 | E37: 69.67 | F37: 70.32 | G37: 318 | H37: 65.62 | I37: 是 | J37: 化学工程与技术 | K37: 统考
A38: 35 | B38: 114141141333866 | C38: 张维贤 | D38: 78.00 | E38: 75.83 | F38: 77.35 | G38: 300 | H38: 65.21 | I38: 候补 | K38: 统考
A39: 36 | B39: 114141151104289 | C39: 余波 | D39: 78.60 | E39: 70.33 | F39: 76.12 | G39: 302 | H39: 65.12 | I39: 否 | K39: 统考
A40: 37 | B40: 114141123202875 | C40: 赵虹蕴 | D40: 67.60 | E40: 77.50 | F40: 70.57 | G40: 309 | H40: 64.43 | I40: 否 | K40: 统考
A41: 38 | B41: 114141121102574 | C41: 宫柳杨 | D41: 69.80 | E41: 70.33 | F41: 69.96 | G41: 310 | H41: 64.39 | I41: 否 | K41: 统考
A42: 39 | B42: 114141151244339 | C42: 左俊林 | D42: 73.40 | E42: 65.83 | F42: 71.13 | G42: 299 | H42: 63.20 | I42: 否 | K42: 统考
A44: 备注：如果排名靠前的考生放弃或失去拟录取资格，按照候补名单的顺序依次递补。

Sheet 能源与催化工程系专硕
A1: 化学工程与环境学院2021级全日制专业学位硕士研究生复试成绩汇总暨拟录取名单统计表
A2: 复试小组名称：能源与催化工程系（专业型）
A3: 序号 | B3: 考生编号 | C3: 姓名 | D3: 面试专业成绩 | E3: 面试英语成绩 | F3: 复试成绩 | G3: 初试成绩 | H3: 总成绩 | I3: 是否拟录取 | J3: 拟录取专业 | K3: 考生来源(推免/优秀营员/统考) | L3: 备注
A4: 1 | B4: 114141137023334 | C4: 钟姝鑫 | D4: 86.33 | E4: 85.67 | F4: 86.07 | G4: 353 | H4: =G4/5*0.7+F4*0.3 -> 75.24 | I4: 是 | J4: 材料与化工 | K4: 夏令营优秀营员
A5: 2 | B5: 114141137023328 | C5: 张润程 | D5: 90.00 | E5: 87.00 | F5: 88.80 | G5: 364 | H5: 77.60 | I5: 是 | J5: 材料与化工 | K5: 夏令营优秀营员
A6: 3 | B6: 114141141333869 | C6: 辛露伟 | D6: 78.67 | E6: 83.20 | F6: =D6*0.7+E6*0.3 -> 80.03 | G6: 394 | H6: 79.17 | I6: 是 | J6: 材料与化工 | K6: 统考
A7: 4 | B7: 114141141403885 | C7: 范梦凡 | D7: 73.67 | E7: 74.20 | F7: 73.83 | G7: 383 | H7: 75.77 | I7: 是 | J7: 材料与化工 | K7: 统考
A8: 5 | B8: 114141137033369 | C8: 石婷婷 | D8: 78.50 | E8: 85.40 | F8: 80.57 | G8: 361 | H8: 74.71 | I8: 是 | J8: 材料与化工 | K8: 统考
A9: 6 | B9: 114141161444649 | C9: 张祎 | D9: 83.33 | E9: 84.00 | F9: 83.53 | G9: 341 | H9: 72.80 | I9: 是 | J9: 材料与化工 | K9: 统考
A10: 7 | B10: 114141163034717 | C10: 乐小莉 | D10: 85.50 | E10: 71.20 | F10: 81.21 | G10: 341 | H10: 72.10 | I10: 是 | J10: 材料与化工 | K10: 统考
A11: 8 | B11: 114141121012488 | C11: 徐彤 | D11: 75.67 | E11: 82.40 | F11: 77.69 | G11: 343 | H11: 71.33 | I11: 是 | J11: 材料与化工 | K11: 统考
A12: 9 | B12: 114141162044668 | C12: 彭博 | D12: 74.50 | E12: 72.20 | F12: 73.81 | G12: 343 | H12: 70.16 | I12: 是 | J12: 材料与化工 | K12: 统考
A13: 10 | B13: 114141114112335 | C13: 沈红茹 | D13: 75.83 | E13: 78.80 | F13: 76.72 | G13: 335 | H13: 69.92 | I13: 是 | J13: 材料与化工 | K13: 统考
A14: 11 | B14: 114141161034559 | C14: 胡敏 | D14: 90.00 | E14: 79.80 | F14: 86.94 | G14: 313 | H14: 69.90 | I14: 是 | J14: 材料与化工 | K14: 统考
A15: 12 | B15: 114141113152174 | C15: 甄力研 | D15: 88.50 | E15: 69.60 | F15: 82.83 | G15: 318 | H15: 69.37 | I15: 是 | J15: 材料与化工 | K15: 统考
A16: 13 | B16: 114141113102099 | C16: 马亚婷 | D16: 76.67 | E16: 78.40 | F16: 77.19 | G16: 319 | H16: 67.82 | I16: 是 | J16: 材料与化工 | K16: 统考
A17: 14 | B17: 114141122062735 | C17: 朴宇 | D17: 69.50 | E17: 74.00 | F17: 70.85 | G17: 327 | H17: 67.04 | I17: 是 | J17: 材料与化工 | K17: 统考
A18: 15 | B18: 114141137153660 | C18: 苏良健 | D18: 65.83 | E18: 72.60 | F18: 67.86 | G18: 332 | H18: 66.84 | I18: 是 | J18: 材料与化工 | K18: 统考
A19: 16 | B19: 114141137073501 | C19: 王沼桂 | D19: 85.67 | E19: 75.00 | F19: 82.47 | G19: 299 | H19: 66.60 | I19: 是 | J19: 材料与化工 | K19: 统考
A20: 17 | B20: 114141137073490 | C20: 白玉华 | D20: 76.50 | E20: 77.20 | F20: 76.71 | G20: 309 | H20: 66.27 | I20: 是 | J20: 材料与化工 | K20: 统考
A21: 18 | B21: 114141132162957 | C21: 陈铭宇 | D21: 76.83 | E21: 76.60 | F21: 76.76 | G21: 307 | H21: 66.01 | I21: 是 | J21: 材料与化工 | K21: 统考
A22: 19 | B22: 114141121102576 | C22: 侯奕康 | D22: 69.67 | E22: 63.60 | F22: 67.85 | G22: 304 | H22: 62.91 | I22: 是 | J22: 材料与化工 | K22: 统考

Sheet 环境科学与工程系学硕
A1: 化学工程与环境学院2021级全日制硕士研究生复试成绩汇总暨拟录取名单统计表
A2: 复试小组名称： 环境科学与工程系（学术型）
A3: 序号 | B3: 考生编号 | C3: 姓名 | D3: 面试专业成绩 | E3: 面试英语成绩 | F3: 复试成绩 | G3: 初试成绩 | H3: 总成绩 | I3: 是否拟录取 | J3: 拟录取专业 | K3: 考生来源(推免/优秀营员/统考) | L3: 备注
A4: 1 | C4: 冯扬帆 | F4: 90.67 | I4: 是 | J4: 环境科学与工程 | K4: 推免 | L4: 助管
A5: 2 | C5: 杨百玉 | F5: 90.13 | I5: 是 | J5: 环境科学与工程 | K5: 推免
A6: 3 | C6: 熊子馨 | F6: 88.64 | I6: 是 | J6: 环境科学与工程 | K6: 推免 | L6: 助管
A7: 4 | C7: 孙雅倩 | F7: 84.20 | I7: 是 | J7: 环境科学与工程 | K7: 推免
A8: 5 | B8: 114141111641057 | C8: 李佳昕 | D8: 89.33 | E8: 87.00 | F8: 88.40 | G8: 390 | H8: =G8/5*0.7+F8*0.3 -> 81.12 | I8: 是 | J8: 环境科学与工程 | K8: 夏令营优秀营员
A9: 6 | B9: 114141111641546 | C9: 李思萌 | D9: 85.00 | E9: 86.00 | F9: 85.40 | G9: 350 | H9: 74.62 | I9: 是 | J9: 环境科学与工程 | K9: 夏令营优秀营员
A10: 7 | B10: 114141111641541 | C10: 闫京瑞 | D10: 86.00 | E10: 85.00 | F10: =D10*0.6+E10*0.4 -> 85.60 | G10: 341 | H10: 73.42 | I10: 是 | J10: 环境科学与工程 | K10: 夏令营优秀营员
A11: 8 | B11: 114141111641603 | C11: 王乐琪 | D11: 92.67 | E11: 92.00 | F11: 92.13 | G11: 326 | H11: 73.28 | I11: 是 | J11: 环境科学与工程 | K11: 夏令营优秀营员
A12: 9 | B12: 114141137083529 | C12: 刘欢欢 | D12: 90.67 | E12: 86.67 | F12: 89.07 | G12: 319 | H12: 71.38 | I12: 是 | J12: 环境科学与工程 | K12: 夏令营优秀营员
A13: 10 | B13: 114141111641507 | C13: 宋明欣 | D13: 91.67 | E13: 86.00 | F13: 89.40 | G13: 315 | H13: 70.92 | I13: 是 | J13: 环境科学与工程 | K13: 夏令营优秀营员
A14: 11 | B14: 114141114042283 | C14: 曹瑜 | D14: 85.00 | E14: 85.00 | F14: 85.00 | G14: 321 | H14: 70.44 | I14: 是 | J14: 环境科学与工程 | K14: 夏令营优秀营员
A15: 12 | B15: 114141111641607 | C15: 刘莉莉 | D15: 85.33 | E15: 85.00 | F15: 85.20 | G15: 313 | H15: 69.38 | I15: 是 | J15: 环境科学与工程 | K15: 夏令营优秀营员
A16: 13 | B16: 114141111641706 | C16: 张怡欣 | D16: 92.33 | E16: 88.33 | F16: 90.73 | G16: 275 | H16: 65.72 | I16: 是 | J16: 环境科学与工程 | K16: 夏令营优秀营员
A17: 14 | B17: 114141111641110 | C17: 金鹏 | D17: 82.57 | E17: 86.17 | F17: 83.65 | G17: 392 | H17: 79.98 | I17: 是 | J17: 环境科学与工程 | K17: 统考
A18: 15 | B18: 114141132212984 | C18: 韦标 | D18: 90.86 | E18: 88.67 | F18: 90.20 | G18: 371 | H18: 79.00 | I18: 是 | J18: 环境科学与工程 | K18: 统考
A19: 16 | B19: 114141111641573 | C19: 曾宣凯 | D19: 88.86 | E19: 84.67 | F19: 87.60 | G19: 372 | H19: 78.36 | I19: 是 | J19: 环境科学与工程 | K19: 统考
A20: 17 | B20: 114141150094191 | C20: 游恋 | D20: 85.43 | E20: 76.00 | F20: 82.60 | G20: 379 | H20: 77.84 | I20: 是 | J20: 环境科学与工程 | K20: 统考
A21: 18 | B21: 114141111641517 | C21: 马源 | D21: 78.00 | E21: 93.50 | F21: 82.65 | G21: 367 | H21: 76.18 | I21: 是 | J21: 环境科学与工程 | K21: 统考
A22: 19 | B22: 114141144054145 | C22: 周梦晗 | D22: 86.00 | E22: 88.17 | F22: 86.65 | G22: 351 | H22: 75.14 | I22: 是 | J22: 环境科学与工程 | K22: 统考
A23: 20 | B23: 114141111641062 | C23: 邢雨菲 | D23: 82.29 | E23: 87.83 | F23: 83.95 | G23: 353 | H23: 74.60 | I23: 是 | J23: 环境科学与工程 | K23: 统考
A24: 21 | B24: 114141121192680 | C24: 王海柘 | D24: 85.86 | E24: 69.67 | F24: 81.00 | G24: 356 | H24: 74.14 | I24: 是 | J24: 环境科学与工程 | K24: 统考
A25: 22 | B25: 114141150184228 | C25: 万雨若 | D25: 84.14 | E25: 80.00 | F25: 82.90 | G25: 341 | H25: 72.61 | I25: 是 | J25: 环境科学与工程 | K25: 统考
A26: 23 | B26: 114141111641105 | C26: 林润静 | D26: 83.71 | E26: 86.50 | F26: 84.55 | G26: 335 | H26: 72.27 | I26: 是 | J26: 环境科学与工程 | K26: 统考
A27: 24 | B27: 114141111641073 | C27: 孙鹤 | D27: 85.00 | E27: 82.83 | F27: 84.35 | G27: 335 | H27: 72.20 | I27: 是 | J27: 环境科学与工程 | K27: 统考
A28: 25 | B28: 114141111641550 | C28: 余锦标 | D28: 85.71 | E28: 93.67 | F28: 88.10 | G28: 323 | H28: 71.65 | I28: 是 | J28: 环境科学与工程 | K28: 统考
A29: 26 | B29: 114141111641632 | C29: 杨晨璐 | D29: 83.86 | E29: 89.67 | F29: 85.60 | G29: 317 | H29: 70.06 | I29: 是 | J29: 环境科学与工程 | K29: 统考
A30: 27 | B30: 114141137013189 | C30: 李瑶瑶 | D30: 82.29 | E30: 82.83 | F30: 82.45 | G30: 323 | H30: 69.95 | I30: 是 | J30: 环境科学与工程 | K30: 统考
A31: 28 | B31: 114141111640973 | C31: 陈雪萱 | D31: 82.57 | E31: 86.17 | F31: 83.65 | G31: 320 | H31: 69.90 | I31: 是 | J31: 环境科学与工程 | K31: 统考
A32: 29 | B32: 114141111640983 | C32: 姜峻韬 | D32: 80.71 | E32: 82.17 | F32: 81.15 | G32: 324 | H32: 69.71 | I32: 是 | J32: 环境科学与工程 | K32: 统考
A33: 30 | B33: 114141113202241 | C33: 李蒙 | D33: 80.14 | E33: 82.00 | F33: 80.70 | G33: 322 | H33: 69.29 | I33: 是 | J33: 环境科学与工程 | K33: 统考
A34: 31 | B34: 114141115382486 | C34: 陈沛含 | D34: 85.14 | E34: 81.50 | F34: 84.05 | G34: 314 | H34: 69.18 | I34: 是 | J34: 环境科学与工程 | K34: 统考
A35: 32 | B35: 114141113021887 | C35: 李文静 | D35: 84.43 | E35: 70.83 | F35: 80.35 | G35: 317 | H35: 68.48 | I35: 是 | J35: 环境科学与工程 | K35: 统考
A36: 33 | B36: 114141141453894 | C36: 伍心怡 | D36: 84.71 | E36: 76.83 | F36: 82.35 | G36: 309 | H36: 67.96 | I36: 是 | J36: 环境科学与工程 | K36: 统考
A37: 34 | B37: 114141111641579 | C37: 罗抒晗 | D37: 88.86 | E37: 92.50 | F37: 89.95 | G37: 291 | H37: 67.73 | I37: 是 | J37: 环境科学与工程 | K37: 统考
A38: 35 | B38: 114141111641385 | C38: 王亚卓 | D38: 84.86 | E38: 85.50 | F38: 85.05 | G38: 292 | H38: 66.40 | I38: 是 | J38: 环境科学与工程 | K38: 统考
A39: 36 | B39: 114141115272459 | C39: 牛婧雯 | D39: 85.00 | E39: 70.83 | F39: 80.75 | G39: 300 | H39: 66.22 | I39: 是 | J39: 环境科学与工程 | K39: 统考
A40: 37 | B40: 114141112051785 | C40: 王昆 | D40: 74.86 | E40: 85.83 | F40: 78.15 | G40: 302 | H40: 65.72 | I40: 是 | J40: 环境科学与工程 | K40: 统考
A41: 38 | B41: 114141111641566 | C41: 朱裕文 | D41: 84.14 | E41: 87.83 | F41: 85.25 | G41: 280 | H41: 64.77 | I41: 是 | J41: 环境科学与工程 | K41: 统考
A42: 39 | B42: 114141143084088 | C42: 夏秋丽 | D42: 55.71 | E42: 83.33 | F42: 64.00 | G42: 325 | H42: 64.70 | I42: 否 | K42: 统考
A43: 40 | B43: 114141113192238 | C43: 高茜 | D43: 54.29 | E43: 77.50 | F43: 61.25 | G43: 322 | H43: 63.46 | I43: 否 | K43: 统考
A44: 41 | B44: 114141151074243 | C44: 吕凤 | D44: 61.43 | E44: 69.17 | F44: 63.75 | G44: 300 | H44: 61.13 | I44: 否 | K44: 统考
A45: 42 | B45: 114141122032720 | C45: 曲瑞雪 | D45: 62.71 | E45: 74.83 | F45: 66.35 | G45: 283 | H45: 59.52 | I45: 否 | K45: 统考

Sheet 环境科学与工程系专硕
A1: 化学工程与环境学院2021级全日制专业学位硕士研究生复试成绩汇总暨拟录取名单统计表
A2: 复试小组名称： 环境科学与工程系（专业型）
A3: 序号 | B3: 考生编号 | C3: 姓名 | D3: 面试专业成绩 | E3: 面试英语成绩 | F3: 复试成绩 | G3: 初试成绩 | H3: 总成绩 | I3: 是否拟录取 | J3: 拟录取专业 | K3: 考生来源(推免/优秀营员/统考) | L3: 备注
A4: 1 | C4: 包育文 | F4: 87.27 | I4: 是 | J4: 资源与环境 | K4: 推免
A5: 2 | B5: 114141151104291 | C5: 李昀照 | D5: 84.00 | E5: 82.60 | F5: 83.58 | G5: 382 | H5: 78.55 | I5: 是 | J5: 资源与环境 | K5: 统考
A6: 3 | B6: 114141137173686 | C6: 王红燕 | D6: 82.40 | E6: 76.20 | F6: 80.54 | G6: 372 | H6: 76.24 | I6: 是 | J6: 资源与环境 | K6: 统考
A7: 4 | B7: 114141115312462 | C7: 张悦 | D7: 85.00 | E7: 80.00 | F7: 83.50 | G7: 363 | H7: 75.87 | I7: 是 | J7: 资源与环境 | K7: 统考
A8: 5 | B8: 114141144054140 | C8: 陈茜 | D8: 85.80 | E8: 78.20 | F8: 83.52 | G8: 354 | H8: 74.62 | I8: 是 | J8: 资源与环境 | K8: 统考
A9: 6 | B9: 114141112061791 | C9: 张晨 | D9: 85.20 | E9: 81.20 | F9: 84.00 | G9: 352 | H9: 74.48 | I9: 是 | J9: 资源与环境 | K9: 统考
A10: 7 | B10: 114141144304173 | C10: 黄杰锐 | D10: 79.00 | E10: 68.60 | F10: 75.88 | G10: 366 | H10: 74.00 | I10: 是 | J10: 资源与环境 | K10: 统考
A11: 8 | B11: 114141111641428 | C11: 谭青松 | D11: 80.00 | E11: 74.40 | F11: 78.32 | G11: 358 | H11: 73.62 | I11: 是 | J11: 资源与环境 | K11: 统考
A12: 9 | B12: 114141111641496 | C12: 尚鹏寅 | D12: 83.40 | E12: 74.00 | F12: 80.58 | G12: 346 | H12: 72.61 | I12: 是 | J12: 资源与环境 | K12: 统考
A13: 10 | B13: 114141111641645 | C13: 王辰予 | D13: 86.80 | E13: 73.00 | F13: 82.66 | G13: 341 | H13: 72.54 | I13: 是 | J13: 资源与环境 | K13: 统考
A14: 11 | B14: 114141111641304 | C14: 彭然 | D14: 83.80 | E14: 80.40 | F14: 82.78 | G14: 330 | H14: 71.03 | I14: 是 | J14: 资源与环境 | K14: 统考
A15: 12 | B15: 114141144054144 | C15: 叶绮彤 | D15: 82.40 | E15: 80.40 | F15: 81.80 | G15: 331 | H15: 70.88 | I15: 是 | J15: 资源与环境 | K15: 统考
A16: 13 | B16: 114141161034507 | C16: 马霖楠 | D16: 86.20 | E16: 83.00 | F16: 85.24 | G16: 317 | H16: 69.95 | I16: 是 | J16: 资源与环境 | K16: 统考
A17: 14 | B17: 114141112111812 | C17: 李思萌 | D17: 85.40 | E17: 73.00 | F17: 81.68 | G17: 322 | H17: 69.58 | I17: 是 | J17: 资源与环境 | K17: 统考
A18: 15 | B18: 114141135013122 | C18: 陈思源 | D18: 88.40 | E18: 74.60 | F18: 84.26 | G18: 316 | H18: 69.52 | I18: 是 | J18: 资源与环境 | K18: 统考
A19: 16 | B19: 114141113152175 | C19: 孙博 | D19: 85.00 | E19: 87.60 | F19: 85.78 | G19: 308 | H19: 68.85 | I19: 是 | J19: 资源与环境 | K19: 统考
A20: 17 | B20: 114141161364622 | C20: 黄石雨 | D20: 84.60 | E20: 77.40 | F20: 82.44 | G20: 314 | H20: 68.69 | I20: 是 | J20: 资源与环境 | K20: 统考
A21: 18 | B21: 114141112031742 | C21: 袁帅 | D21: 71.60 | E21: 73.60 | F21: 72.20 | G21: 328 | H21: 67.58 | I21: 是 | J21: 资源与环境 | K21: 统考
A22: 19 | B22: 114141111641494 | C22: 马霄慧 | D22: 78.40 | E22: 72.00 | F22: 76.48 | G22: 312 | H22: 66.62 | I22: 是 | J22: 资源与环境 | K22: 统考
A23: 20 | B23: 114141112401841 | C23: 康冉 | D23: 72.20 | E23: 82.60 | F23: 75.32 | G23: 313 | H23: 66.42 | I23: 是 | J23: 资源与环境 | K23: 统考
A24: 21 | B24: 114141151514378 | C24: 裴茂辰 | D24: 78.60 | E24: 78.00 | F24: 78.42 | G24: 303 | H24: 65.95 | I24: 是 | J24: 资源与环境 | K24: 统考
A25: 22 | B25: 114141142304047 | C25: 徐凌婕 | D25: 77.60 | E25: 83.80 | F25: 79.46 | G25: 291 | H25: 64.58 | I25: 是 | J25: 资源与环境 | K25: 统考
A26: 说明：根据材料与化工一志愿考生复试录取情况，经学院招生工作领导小组讨论决定，将2个指标空额调整至资源与环境。

Sheet 工程管理
A1: 化学工程与环境学院2021级非全日制硕士研究生复试成绩汇总暨拟录取名单统计表
A2: 复试小组名称： 化学工程系（专业型）
A3: 序号 | B3: 考生编号 | C3: 姓名 | D3: 面试专业成绩 | E3: 面试英语成绩 | F3: 思想政治考核 | G3: 复试成绩 | H3: 初试成绩 | I3: 总成绩 | J3: 是否拟录取 | K3: 拟录取专业 | L3: 考生来源(推免/预录取/统考)
A4: 1 | B4: 114141111640509 | C4: 于书达 | D4: 67.00 | E4: 68.40 | F4: 87.9 | G4: =D4*0.6+E4*0.3+F4*0.1 -> 69.51 | H4: 191 | I4: =H4/3*0.7+G4*0.3 -> 65.42 | J4: 是 | K4: 工程管理 | L4: 统考
A5: 2 | B5: 114141143204111 | C5: 吕宗杰 | D5: 73 | E5: 72 | F5: 87.9 | G5: 74.51 | H5: 179 | I5: 64.12 | J5: 是 | K5: 工程管理 | L5: 统考
A6: 3 | B6: 114141165065011 | C6: 王冬冬 | D6: 75 | E6: 71 | F6: 88.9 | G6: 75.31 | H6: 176 | I6: 63.66 | J6: 是 | K6: 工程管理 | L6: 统考
A7: 4 | B7: 114141121132616 | C7: 高阳 | D7: 67.00 | E7: 68.20 | F7: 91.9 | G7: 69.85 | H7: 182 | I7: 63.42 | J7: 是 | K7: 工程管理 | L7: 统考
A8: 5 | B8: 114141165065010 | C8: 宋婷婷 | D8: 65.00 | E8: 64.80 | F8: 89.9 | G8: 67.43 | H8: 176 | I8: 61.30 | J8: 是 | K8: 工程管理 | L8: 统考

Sheet 非全日制材料与化工单考生
A1: 化学工程与环境学院2021级非全日制硕士研究生复试成绩汇总暨拟录取名单统计表
A2: 复试小组名称： 化学工程系（专业型）
A3: 序号 | B3: 考生编号 | C3: 姓名 | D3: 面试专业成绩 | E3: 面试英语成绩 | F3: 复试成绩 | G3: 初试成绩 | H3: 总成绩 | I3: 是否拟录取 | J3: 拟录取专业 | K3: 考生来源(推免/预录取/统考)
A4: 1 | B4: 114141311640922 | C4: 付明阳 | D4: 81.67 | E4: 64.20 | F4: =D4*0.7+E4*0.3 -> 76.43 | G4: 311 | H4: =G4/5*0.7+F4*0.3 -> 66.47 | I4: 是 | J4: 材料与化工（单考生） | K4: 统考
